[Event "4th Tata Steel India Blitz Open 2022"]
[Site "Kolkota"]
[Date "2022.12.03"]
[Round "6.1"]
[White "Abdusattorov, Nodirbek"]
[Black "Rameshbabu, Praggnanandhaa"]
[Result "0-1"]
[ECO "C84"]
[WhiteElo "2713"]
[BlackElo "2678"]
[Annotator "TA"]
[PlyCount "114"]
[EventDate "2022.11.29"]
[EventType "tourn"]
[EventCountry "IND"]
[SourceTitle "playchess.com"]
[Source "ChessBase"]
[SourceQuality "1"]
[TimeControl "180+2"]

{[%evp 23,114,0,0,0,0,0,0,0,0,-8,0,-3,0,-22,-14,-11,-3,-7,0,0,0,0,0,0,62,-20,-31,-39,-44,-176,-184,-187,-178,-168,-162,-191,0,-151,-154,-219,-213,-215,-193,-279,-264,-443,-452,-452,-445,-442,-444,-431,-420,-406,-394,-10475,-7418,-12818,-12821,-12830,-12829,-12832,-12833,-12833,-12833,-12833,-12833,-12835,-12835,-12835,-12836,-12836,-12835,-12837,-12833,-12836,-12836,-12838,-12839,-12841,-12841,-12850,-27999,-27999,-27999,-27999,-27999,-27999,-27999,-27999,-27998,-27999,-27999]} 1. e4 {[%emt 0:00:02]} e5 {[%emt 0:00:01]} 2. Nf3 {[%emt 0:00:01]} Nc6 {[%emt 0:00:01]} 3. Bb5 {[%emt 0:00:02]} a6 {[%emt 0:00:01]} 4. Ba4 {[%emt 0:00:01]} Nf6 {[%emt 0:00:01]} 5. O-O {[%emt 0:00:02]} b5 {[%emt 0:00:01]} 6. Bb3 {[%emt 0:00:01]} Bb7 {[%emt 0:00:01]} 7. d3 {[%emt 0:00:07]} Bc5 {[%emt 0:00:06]} 8. Nc3 {[%emt 0:00:17][%cal Bb1c3,Bc3d5,Bd5b4,Bb4c2,Bc2e1,Be1f3][%mdl 32]} O-O {[%emt 0:00:02]} 9. Bg5 {[%emt 0:00:05]} h6 {[%emt 0:00:02]} 10. Bh4 {[%emt 0:00:03]} Be7 {[%emt 0:00:01]} 11. a4 {[%emt 0:00:04]} b4 {[%emt 0:00:10]} 12. Bxf6 {[%emt 0:00:03]} Bxf6 {[%emt 0:00:01]} 13. Nd5 {[%emt 0:00:01] C84: Closed Ruy Lopez: Unusual White 6th moves.} Na5 {[%emt 0:00:14] [#]} 14. Nxb4 $146 {[%emt 0:00:11]} ({Predecessor:} 14. Nxf6+ Qxf6 15. Ba2 Rad8 16. Qd2 c5 17. Qe3 Qe7 18. Rae1 Bc6 19. Nd2 Bxa4 20. Rc1 Rb8 {½-½ (35) Krzyzanowski,W (2405)-Van Tricht,M (2348) ICCF email 2012}) 14... Nxb3 {[%emt 0:00:34]} 15. cxb3 {[%emt 0:00:02] The position is equal.} Rb8 {[%emt 0:00:09][%cal Ob7e4]} 16. Nd2 {[%emt 0:00:23]} a5 {[%emt 0:00:23]} 17. Nc2 {[%emt 0:00:02]} Ba6 {[%emt 0:00:04]} 18. Ne1 {[%emt 0:00:47]} c6 {[%emt 0:00:13][%mdl 1024] Black has compensation.} 19. Qc2 {[%emt 0:00:07]} Qb6 {[%emt 0:00:05]} 20. Nef3 {[%emt 0:00:03]} Qc7 {[%emt 0:00:38]} 21. Rfe1 {[%emt 0:00:08]} Rb4 {[%emt 0:00:03]} 22. Rac1 {[%emt 0:00:14]} Rfb8 {[%emt 0:00:10]} 23. h4 {[%emt 0:00:02]} Qd6 {[%emt 0:00:15]} (23... Rc8 $11) 24. Re3 {[%emt 0:00:01]} ({White should try} 24. d4 $1 $14) 24... Bd8 $11 {[%emt 0:00:07]} 25. Nc4 {[%emt 0:00:04] Against Bb6} Qe7 {[%emt 0:00:17]} 26. d4 {[%emt 0:00:05]} (26. Nfd2 $1 $15) 26... Bxc4 $19 {[%emt 0:00:03]} 27. bxc4 {[%emt 0:00:01]} Rxb2 {[%emt 0:00:01]} 28. Qd3 {[%emt 0:00:06]} exd4 {[%emt 0:00:02]} 29. Qxd4 {[%emt 0:00:02]} d6 $2 {[%emt 0:00:01]} (29... R8b4 $19 {...Bb6 is the strong threat.} 30. Qc3 Ra2) 30. c5 {[%emt 0:00:01] [#] Against Bb6} (30. e5 $1 $11 Bc7 31. g3) 30... dxc5 $1 $17 {[%emt 0:00:01]} 31. Qe5 {[%emt 0:00:13]} (31. Qd3 $17) 31... Qxe5 $19 {[%emt 0:00:03]} 32. Nxe5 {[%emt 0:00:01]} Bxh4 {[%emt 0:00:01]} 33. Rf3 {[%emt 0:00:00]} (33. Rf1 $142) 33... Rb1 {[%emt 0:00:08]} 34. Rfc3 {[%emt 0:00:03] [#]} (34. Rxb1 Rxb1+ 35. Kh2) 34... Bf6 {[%emt 0:00:03]} 35. f4 {[%emt 0:00:03]} Bxe5 {[%emt 0:00:02]} 36. fxe5 {[%emt 0:00:01]} Rxc1+ {[%emt 0:00:04]} 37. Rxc1 {[%emt 0:00:01][%mdl 4096] Endgame KR-KR} Rb4 {[%emt 0:00:01][%csl LRa4,LRe4]} 38. Rxc5 {[%emt 0:00:02]} Rxa4 {[%emt 0:00:01]} ({Worse is} 38... Rxe4 39. Rxa5 Kf8 40. Kf2 $17) 39. Rxc6 $2 {[%emt 0:00:08]} (39. Kf2) 39... Rxe4 {[%emt 0:00:01]} 40. Rc5 {[%emt 0:00:00]} a4 {[%emt 0:00:01]} 41. Ra5 {[%emt 0:00:04]} a3 {[%emt 0:00:02]} 42. Rxa3 {[%emt 0:00:04]} Rxe5 {[%emt 0:00:01]} 43. Ra7 {[%emt 0:00:01]} g6 {[%emt 0:00:02][%cal Bg7g6,Bg6g5][%mdl 32]} 44. Kf2 {[%emt 0:00:01]} Kg7 {[%emt 0:00:00]} 45. g3 {[%emt 0:00:01]} h5 {[%emt 0:00:01]} 46. Kf3 {[%emt 0:00:01]} g5 {[%emt 0:00:01]} 47. Ra6 {[%emt 0:00:00]} f6 {[%emt 0:00:01]} 48. Ra8 {[%emt 0:00:01]} Re7 {[%emt 0:00:05]} 49. Rb8 {[%emt 0:00:01]} Ra7 {[%emt 0:00:04]} 50. Rc8 {[%emt 0:00:03]} Ra4 {[%emt 0:00:01]} 51. Kg2 {[%emt 0:00:31]} h4 {[%emt 0:00:02]} 52. gxh4 {[%emt 0:00:05]} Rxh4 {[%emt 0:00:02]} 53. Rc5 {[%emt 0:00:01] Against f5. Black mates.} Kg6 {[%emt 0:00:01]} 54. Kf3 {[%emt 0:00:01]} Ra4 {[%emt 0:00:01]} 55. Rb5 {[%emt 0:00:01]} Ra6 {[%emt 0:00:03]} 56. Kg4 {[%emt 0:00:03]} f5+ {[%emt 0:00:02]} 57. Kg3 {[%emt 0:00:01]} Re6 {[%emt 0:00:01] Weighted Error Value: White=0.70/Black=0.11 (very precise)} 0-1

[Event "4th Tata Steel India Blitz Open 2022"]
[Site "Kolkota"]
[Date "2022.12.03"]
[Round "6.5"]
[White "Nakamura, Hikaru"]
[Black "Maghsoodloo, Parham"]
[Result "1-0"]
[ECO "A04"]
[WhiteElo "2768"]
[BlackElo "2720"]
[Annotator "TA"]
[PlyCount "133"]
[EventDate "2022.11.29"]
[EventType "tourn"]
[EventCountry "IND"]
[SourceTitle "playchess.com"]
[Source "ChessBase"]
[SourceQuality "1"]
[TimeControl "180+2"]

{[%evp 9,133,-27,-14,-23,-17,-8,-16,-11,-15,-15,-13,-10,-13,-16,-5,-8,0,-7,-8,-31,141,147,195,92,81,102,98,85,79,87,77,54,72,0,6,0,48,47,66,66,63,68,63,62,92,56,49,-20,-37,-22,-35,-21,-79,-68,-58,-81,-70,-151,-154,-152,0,0,183,191,184,189,393,-116,-110,-437,-381,-384,-360,-347,-64,-65,-59,-60,-58,-43,-55,-55,-63,-58,-44,-54,0,0,9,0,80,70,241,240,473,420,387,387,380,374,527,527,676,676,671,145,569,189,661,659,647,272,288,0,627,0,250,136,29957,29958,4914,839,29977,29977,29977,29978]} 1. Nf3 {[%emt 0:00:01]} c5 {[%emt 0:00:02]} 2. g3 {[%emt 0:00:04]} (2. e3 Nf6 3. b3 b6 4. Bb2 Bb7 5. g3 e6 6. Bg2 Be7 7. O-O O-O 8. Qe2 Qc7 9. c4 Nc6 10. Nc3 Rad8 11. Rfd1 Rfe8 12. Rac1 Qb8 13. d4 cxd4 14. Nxd4 Rc8 15. Qf1 Red8 16. Rd2 h5 {1-0 (35) Nakamura,H (2768)-Maghsoodloo,P (2701) Chess.com INT 2022}) 2... Nc6 {[%emt 0:00:03]} 3. d4 {[%emt 0:00:01]} d5 {[%emt 0:00:10]} 4. e3 {[%emt 0:00:15]} Nf6 {[%emt 0:00:04]} 5. Bg2 {[%emt 0:00:01]} cxd4 {[%emt 0:00:03]} 6. exd4 {[%emt 0:00:07] A04: Unusual lines after 1 Nf3 and King's Indian Attack.} Bf5 {[%emt 0:00:07]} 7. O-O {[%emt 0:00:06]} e6 {[%emt 0:00:01]} 8. c3 {[%emt 0:00:17] The position is equal.} Bd6 {[%emt 0:00:09]} 9. Re1 {[%emt 0:00:03]} O-O {[%emt 0:00:09]} 10. Nbd2 {[%emt 0:00:07] [#]} b5 $146 {[%emt 0:00:08]} ({Predecessor:} 10... Qc7 11. Nf1 h6 12. Nh4 Bh7 13. f4 b5 14. Ne3 Ne7 15. Rf1 Rab8 16. f5 b4 {0-1 (35) Raguz,I (1706)-Cvitan,E (2009) Biograd 2018}) 11. Nb3 {[%emt 0:00:53]} h6 {[%emt 0:00:17]} 12. Ne5 {[%emt 0:00:10]} Qc7 {[%emt 0:00:05]} 13. Bf4 {[%emt 0:00:10]} a5 {[%emt 0:00:03]} 14. a4 {[%emt 0:00:11]} (14. Nxc6 {simplifies} Qxc6 15. Bxd6 Qxd6 16. Qd2) 14... b4 {[%emt 0:00:03]} (14... bxa4 $15 {keeps the upper hand.} 15. Nxc6 (15. Rxa4 g5 $11) 15... Qxc6 16. Bxd6 Qxd6) 15. Rc1 $16 {[%emt 0:00:05] White is more active.} Qb7 {[%emt 0:00:22]} (15... bxc3 $16 16. Rxc3 Bxe5 17. dxe5 (17. Bxe5 Qb6 $14) 17... Ne4) 16. c4 {[%emt 0:00:01]} (16. Nxc6 $18 {and the rest is easy.} Qxc6 17. cxb4) 16... Rfc8 {[%emt 0:00:20][%cal Bf8c8,Bc8c6,Bc6d6,Bd6d8,Bd8b8][%mdl 32]} 17. Nxc6 {[%emt 0:00:04]} Rxc6 {[%emt 0:00:10]} 18. Bxd6 {[%emt 0:00:07]} Rxd6 {[%emt 0:00:01]} 19. c5 {[%emt 0:00:01]} Rdd8 {[%emt 0:00:11]} 20. Qe2 {[%emt 0:00:05]} Qc7 {[%emt 0:00:03]} 21. Qb5 {[%emt 0:00:09]} (21. Bf1 $16) 21... Rdb8 $11 {[%emt 0:00:05]} 22. Qe2 {[%emt 0:00:01]} Qc6 {[%emt 0:00:03]} (22... Rd8 $1 $11) 23. Ra1 $14 {[%emt 0:00:01]} Be4 {[%emt 0:00:04]} 24. Bf1 {[%emt 0:00:02]} Nd7 {[%emt 0:00:25]} 25. f3 {[%emt 0:00:01]} (25. Qe3 {looks sharper.} Rc8 26. Bb5 Qc7 27. f3) 25... Bg6 {[%emt 0:00:03]} 26. Qd2 {[%emt 0:00:06]} Rb7 {[%emt 0:00:26]} 27. Rec1 {[%emt 0:00:05] Threatens to win with Bb5.} (27. Bb5 {with more complications.} Rxb5 28. axb5 Qxb5 29. c6) 27... Nb8 {[%emt 0:00:02]} 28. Bb5 {[%emt 0:00:03]} (28. Qf4 $14) 28... Rxb5 $1 $11 {[%emt 0:00:01]} 29. axb5 {[%emt 0:00:01]} Qxb5 {[%emt 0:00:01]} 30. c6 {[%emt 0:00:06]} Nxc6 {[%emt 0:00:02]} 31. Rc5 {[%emt 0:00:01] Prevents a4.} Qb6 {[%emt 0:00:00]} 32. Rac1 {[%emt 0:00:00] Prevents a4.} Ne7 {[%emt 0:00:05]} 33. Qe2 {[%emt 0:00:10]} (33. Qf4 $15) 33... a4 $17 {[%emt 0:00:03]} 34. Rb5 {[%emt 0:00:01]} Qa7 {[%emt 0:00:09]} (34... Qd8 $17 35. Nc5 a3 36. bxa3 bxa3) 35. Nc5 $11 {[%emt 0:00:01] Black must now prevent Rb7.} Nc6 $2 {[%emt 0:00:01] [#]} (35... Nf5 $11 {and Black stays safe.} 36. Rb7 (36. Rxb4 a3 $11) 36... Qa5) 36. Rb7 $1 $18 {[%emt 0:00:13]} Qa5 {[%emt 0:00:01]} (36... Nxd4 $2 37. Qf2 $18) 37. Nxe6 {[%emt 0:00:01][%mdl 64]} a3 $2 {[%emt 0:00:07]} (37... Nd8 38. Nxd8 Qxd8) 38. bxa3 $2 {[%emt 0:00:07]} (38. Rxc6 $18 {[%cal Oe2e5] Qe5! would kill now.} Bf5 {[#]} 39. Nxg7 $1 {[%mdl 512]} (39. Rc5 a2 $14) 39... axb2 40. Qxb2 (40. Nxf5 $2 b1=Q+ 41. Kg2 Qxf5 $19) 40... Kxg7 41. Rxb4) 38... bxa3 $17 {[%emt 0:00:01][%cal Oa8e8]} 39. Rb5 $2 {[%emt 0:00:09][%mdl 8192]} (39. Rxc6 $2 a2 40. Rc1 a1=Q 41. Rxa1 Qxa1+ 42. Kg2 Bf5 $19) (39. Rc7 $17 a2 40. Ra1) 39... Qa7 {[%emt 0:00:04]} (39... Qa6 40. Nc7 Qa7 41. Nxa8 (41. Rxc6 $2 a2 $19) 41... Nxd4 42. Qe8+ Kh7 43. Rb8 (43. Rxd5 $2 a2 $19) 43... Nc6+ 44. Rb6 $11) 40. Rbc5 {[%emt 0:00:06] Inhibits a2.} (40. Rxc6 $2 a2 41. Rc1 a1=Q 42. Rxa1 Qxa1+ 43. Qf1 Qxf1+ 44. Kxf1 Bd3+ 45. Ke1 Bxb5 $19) 40... a2 $1 {[%emt 0:00:03]} 41. Ra1 {[%emt 0:00:01][%cal Bc1a1,Ba1a2,Ba2b2][%mdl 32]} Nxd4 {[%emt 0:00:01]} (41... Qa4 $19 42. Kh1 Kh8) 42. Qxa2 $1 $15 {[%emt 0:00:04][%mdl 64]} Qxa2 {[%emt 0:00:02]} (42... Nxf3+ $5 43. Kh1 Qxa2 44. Rxa2 Rb8 $15) 43. Rxa2 {[%emt 0:00:01]} Nxf3+ {[%emt 0:00:02]} (43... Rxa2 $2 44. Rc8+ Kh7 45. Nf8+ Kh8 46. Nxg6+ Kh7 47. Nf8+ Kh8 48. Ne6+ Kh7 49. Nxd4 $18) 44. Kh1 $1 {[%emt 0:00:01]} Rb8 {[%emt 0:00:04]} 45. Rb2 {[%emt 0:00:04][%mdl 64]} Re8 {[%emt 0:00:02]} (45... Rxb2 46. Rc8+ Kh7 47. Nf8+ Kh8 48. Ne6+ Kh7 49. Nf8+ Kh8 50. Ne6+ Kh7 $11) 46. Nf4 {[%emt 0:00:01]} Be4 {[%emt 0:00:01]} 47. Kg2 {[%emt 0:00:01]} ({But not} 47. Nxd5 Ne5+ 48. Kg1 Nd3 $17) 47... g5 {[%emt 0:00:02]} ({Better is} 47... Kh7 $15) 48. Nxd5 $11 {[%emt 0:00:01]} Kg7 {[%emt 0:00:02] Against Nf6. ...Ne5+ is the strong threat.} 49. Nc7 {[%emt 0:00:03]} Rd8 {[%emt 0:00:02]} (49... Re7 $11) 50. Kf2 $16 {[%emt 0:00:02]} Nxh2 $2 {[%emt 0:00:02]} (50... Kh7 $14) 51. Ke3 $1 $18 {[%emt 0:00:00][%csl LRe4,LRh2][%mdl 64] Discovered Attack} Nf1+ $2 {[%emt 0:00:04]} (51... Bg6) 52. Kxe4 {[%emt 0:00:01]} Nxg3+ {[%emt 0:00:01]} 53. Kf3 {[%emt 0:00:01]} Rd3+ {[%emt 0:00:01]} 54. Kg2 {[%emt 0:00:01] Hoping for Ne8+.} Ne4 {[%emt 0:00:03]} (54... Nh5 {keeps fighting.} 55. Ne8+ Kh7) 55. Ne8+ {[%emt 0:00:05]} Kg6 {[%emt 0:00:03]} 56. Rb6+ {[%emt 0:00:01]} f6 {[%emt 0:00:00]} 57. Rcc6 {[%emt 0:00:02]} (57. Rc4 $18) 57... Rg3+ $2 {[%emt 0:00:02][%mdl 8192]} (57... g4 $16 {is more resistant.} 58. Re6 (58. Nxf6 Rg3+ 59. Kh1 Rh3+ 60. Kg2 Rg3+ 61. Kh2 Rh3+ 62. Kg2 Rg3+ $11) 58... Rg3+ 59. Kf1 Re3) 58. Kf1 $2 {[%emt 0:00:02]} (58. Kh2 {[%cal Rc6f6] aiming for Rxf6+.} Rf3 59. Rc4 Rf2+ 60. Kg1) 58... h5 $2 {[%emt 0:00:02]} (58... Rf3+ 59. Ke2 g4) 59. Ke2 {[%emt 0:00:01][%cal Re8f6]} ({Worse is} 59. Nxf6 Rf3+ 60. Ke2 Rxf6 $11) 59... Nc3+ {[%emt 0:00:02]} 60. Kf2 {[%emt 0:00:02]} (60. Ke1 $142 Nd5 61. Nxf6 Nxb6 62. Ne4+ (62. Rxb6 Kf5 $11) 62... Kf7 63. Nxg3) 60... Ne4+ {[%emt 0:00:01]} 61. Ke2 $2 {[%emt 0:00:00]} (61. Ke1 Rf3 62. Ke2) 61... Nc3+ 62. Kf1 $2 (62. Ke1 Rf3 63. Nxf6) 62... Ne4 $1 {[%emt 0:00:03]} 63. Re6 {[%emt 0:00:03]} ({Inferior is} 63. Nxf6 Rf3+ 64. Kg2 Rxf6 $11) (63. Ke1 $18 {[%cal Re8f6]} Re3+ 64. Kd1) 63... Rf3+ $2 {[%emt 0:00:01][%mdl 8192]} (63... Re3 $16) 64. Ke2 {[%emt 0:00:03]} Rf4 {[%emt 0:00:01]} 65. Ke3 {[%emt 0:00:02]} h4 {[%emt 0:00:01]} 66. Rxe4 {[%emt 0:00:01]} Rf1 {[%emt 0:00:04] [#]} 67. Rxf6+ $1 {[%emt 0:00:02] Both players deserved the win here.   Weighted Error Value: White=0.44/Black=0.69} 1-0

[Event "4th Tata Steel India Blitz Open 2022"]
[Site "Kolkota"]
[Date "2022.12.03"]
[Round "7.3"]
[White "Maghsoodloo, Parham"]
[Black "Erigaisi Arjun"]
[Result "0-1"]
[ECO "D31"]
[WhiteElo "2720"]
[BlackElo "2718"]
[Annotator "TA"]
[PlyCount "90"]
[EventDate "2022.11.29"]
[EventType "tourn"]
[EventCountry "IND"]
[SourceTitle "playchess.com"]
[Source "ChessBase"]
[SourceQuality "1"]
[TimeControl "180+2"]

{[%evp 10,90,0,0,-4,7,40,29,24,0,0,-20,-4,-12,-20,-15,-15,-12,5,0,0,-27,-29,-135,-137,-141,-127,-151,-148,-151,-141,-141,-135,-134,-137,-129,-127,-146,-126,-143,-143,-143,-152,-197,-154,-155,-143,-155,-166,-171,-164,-164,-167,-171,-170,-169,-67,-67,-67,-67,-67,-67,-67,-123,-95,-92,-79,-90,-67,-167,-162,-158,-165,-164,-154,-157,-159,-138,-119,-129,-125,-5614,-3954]} 1. d4 {[%emt 0:00:01]} d5 {[%emt 0:00:01]} 2. c4 {[%emt 0:00:01]} e6 {[%emt 0:00:01]} 3. Nc3 {[%emt 0:00:01]} c6 {[%emt 0:00:01]} 4. e3 {[%emt 0:00:01]} Nf6 {[%emt 0:00:02]} 5. b3 {[%emt 0:00:01]} Bb4 {[%emt 0:00:01]} 6. Bb2 {[%emt 0:00:07]} Ne4 {[%emt 0:00:03] D31: Queen's Gambit Declined: Semi-Slav without ...Nf6 (+ Marshall Gambit and Noteboom) and Exchange Variation lines without ...Nf6.} 7. Qc2 {[%emt 0:00:05]} (7. Nge2 {simplifies} dxc4 8. Qc2 Nxc3 9. Nxc3 cxb3 10. axb3 Nd7 11. Be2) 7... f5 $5 {[%emt 0:00:16][%mdl 4] Leaves trodden paths.} 8. Bd3 {[%emt 0:00:09]} Qg5 {[%emt 0:00:11] White has an edge.} 9. f4 {[%emt 0:00:12] [#]} Qh4+ $5 $146 {[%emt 0:00:23][%mdl 8] New and interesting.} ({Predecessor:} 9... Qe7 10. Nf3 O-O 11. O-O Nd7 12. a3 Bd6 13. g4 fxg4 14. Ne5 Nef6 15. Qg2 c5 {1-0 (37) Akshayraj,K (2454)-Zinchenko,Y (2544) Rethymno 2012}) 10. g3 {[%emt 0:00:01]} Qh5 {[%emt 0:00:02]} 11. Be2 {[%emt 0:00:09]} Qh6 {[%emt 0:00:05]} 12. Bf3 {[%emt 0:00:06]} Nd7 {[%emt 0:00:05]} 13. Nge2 {[%emt 0:00:10]} Ndf6 {[%emt 0:00:02]} (13... O-O {looks sharper.} 14. O-O b6 15. a3 Be7) 14. a3 {[%emt 0:00:02]} Bd6 {[%emt 0:00:09]} 15. h3 {[%emt 0:00:06]} g5 {[%emt 0:00:06]} 16. O-O-O {[%emt 0:00:13]} (16. Bxe4 $11 Nxe4 17. Nxe4 fxe4 18. Kd2) 16... Nf2 $1 $17 {[%emt 0:00:13][%csl LRd1,LRh1,LRh3]} 17. Kb1 {[%emt 0:00:49]} Bd7 {[%emt 0:00:06]} 18. Bc1 {[%emt 0:00:04] [#] And now fxg5 would win.} gxf4 {[%emt 0:00:14]} 19. exf4 {[%emt 0:00:01]} Nxd1 {[%emt 0:00:11]} 20. Nxd1 {[%emt 0:00:07]} Qg6 {[%emt 0:00:07]} 21. Nf2 {[%emt 0:00:01]} Ne4 {[%emt 0:00:15]} 22. Nd3 {[%emt 0:00:01]} h5 {[%emt 0:00:07] Inhibits g4.} ({Don't play} 22... Nxg3 23. Rg1 $18) 23. Ne5 {[%emt 0:00:04]} Qg7 {[%emt 0:00:04]} 24. Rg1 {[%emt 0:00:12]} O-O-O {[%emt 0:00:07]} 25. c5 {[%emt 0:00:08]} Bc7 {[%emt 0:00:05]} 26. b4 {[%emt 0:00:03]} Rdg8 {[%emt 0:00:02]} 27. h4 {[%emt 0:00:18]} Be8 {[%emt 0:00:04]} 28. Be3 {[%emt 0:00:02]} Rh7 {[%emt 0:00:09]} 29. Kb2 {[%emt 0:00:02]} Qf8 {[%emt 0:00:07]} 30. Bd2 {[%emt 0:00:21]} Rhg7 {[%emt 0:00:10][%cal Re4g3]} 31. Be1 {[%emt 0:00:02]} Bd8 {[%emt 0:00:01][%cal Od8h4]} 32. Rh1 {[%emt 0:00:05]} Nxg3 {[%emt 0:00:10]} ({Black should try} 32... Qe7 $19 33. Qa4 Kb8) 33. Nxg3 {[%emt 0:00:02]} Rxg3 {[%emt 0:00:01]} 34. Bxg3 {[%emt 0:00:01]} Rxg3 {[%emt 0:00:01]} 35. Qf2 {[%emt 0:00:05]} Rg8 {[%emt 0:00:10]} (35... Qg7 {is interesting.} 36. Kb3 Bf6 37. Kb2 Kb8) 36. Bd1 {[%emt 0:00:06]} ({Better is} 36. Rh2 $15) 36... Qh6 {[%emt 0:00:04]} 37. Qe3 {[%emt 0:00:05]} Rg2+ {[%emt 0:00:02]} 38. Kb3 {[%emt 0:00:02]} Qg7 {[%emt 0:00:04]} 39. Nf3 {[%emt 0:00:04]} (39. Bf3 $15 Rg3 40. Qf2) 39... Qg3 {[%emt 0:00:08]} 40. Qxe6+ {[%emt 0:00:02]} Bd7 {[%emt 0:00:01]} 41. Qe3 {[%emt 0:00:02]} Bc7 {[%emt 0:00:04]} 42. Rg1 {[%emt 0:00:06]} Rxg1 {[%emt 0:00:03] Black has more active pieces.} (42... Qxf4 $2 43. Qxf4 Rxg1 44. Qh6 $18) 43. Qxg1 {[%emt 0:00:01]} Qxf4 {[%emt 0:00:03]} 44. Qg8+ {[%emt 0:00:02]} Bd8 {[%emt 0:00:01] [#] Strongly threatening ...Qc1.} 45. Qg5 $2 {[%emt 0:00:01][%mdl 8192]} Bxg5 {[%emt 0:00:03] Weighted Error Value: White=0.23 (precise) /Black=0.10 (very precise)} 0-1

[Event "4th Tata Steel India Blitz Open 2022"]
[Site "Kolkota"]
[Date "2022.12.03"]
[Round "7.4"]
[White "Rameshbabu, Praggnanandhaa"]
[Black "Vidit, Santosh Gujrathi"]
[Result "1-0"]
[ECO "A04"]
[WhiteElo "2678"]
[BlackElo "2724"]
[Annotator "TA"]
[PlyCount "89"]
[EventDate "2022.11.29"]
[EventType "tourn"]
[EventCountry "IND"]
[SourceTitle "playchess.com"]
[Source "ChessBase"]
[SourceQuality "1"]
[TimeControl "180+2"]

{[%evp 9,89,0,12,-6,14,18,15,22,21,14,20,-23,-16,-8,-14,-13,-9,-9,-17,-10,-14,-25,0,0,2,4,339,344,327,322,453,439,441,441,868,840,1314,644,29989,445,780,771,734,712,925,645,1106,892,6231,6170,29993,487,505,556,542,539,552,511,576,555,591,564,592,590,598,595,527,454,547,547,485,412,567,552,29973,29975,29978,29979,29960,6352,29941,5654]} 1. Nf3 {[%emt 0:00:02]} Nf6 {[%emt 0:00:00]} 2. g3 {[%emt 0:00:00]} c5 {[%emt 0:00:01]} 3. Bg2 {[%emt 0:00:04]} Nc6 {[%emt 0:00:01]} 4. O-O {[%emt 0:00:02]} e5 {[%emt 0:00:01]} 5. e4 {[%emt 0:00:01]} d6 {[%emt 0:00:03]} ({Resist} 5... d5 6. exd5 Nxd5 7. Nxe5 $14) 6. c3 {[%emt 0:00:04] A04: Unusual lines after 1 Nf3 and King's Indian Attack.} Be7 {[%emt 0:00:03]} 7. d4 {[%emt 0:00:01]} cxd4 {[%emt 0:00:01]} ({Not} 7... Nxe4 8. d5 $16) 8. cxd4 {[%emt 0:00:02] The position is equal.} Bg4 {[%emt 0:00:02]} (8... Nxe4 $2 9. d5 $18) 9. Be3 {[%emt 0:00:10]} d5 {[%emt 0:00:02] [#]} 10. exd5 $146 {[%emt 0:00:33]} ({Predecessor:} 10. dxe5 Nxe4 11. Qa4 O-O 12. Re1 Qd7 13. Nfd2 Nxd2 14. Bxd2 d4 15. Na3 {0-1 (27) Mrithyunjay,M (2206)-Martinovici,I (2395) Cattolica 2021}) 10... Nxd5 {[%emt 0:00:08]} 11. Qb3 {[%emt 0:00:46]} (11. h3 {simplifies} Bxf3 12. Qxf3 exd4 13. Qxd5 dxe3 14. fxe3 O-O 15. Qxd8 Raxd8 16. Nc3) 11... Nxe3 $1 {[%emt 0:01:42]} 12. fxe3 {[%emt 0:00:02][%cal Of3g5] aiming for Ng5!} O-O {[%emt 0:00:12][%cal Re5d4]} 13. Qxb7 {[%emt 0:00:10]} Rc8 {[%emt 0:00:01] Strongly threatening ...Rc7.} 14. Nxe5 {[%emt 0:00:52]} Nxe5 {[%emt 0:00:02]} 15. dxe5 {[%emt 0:00:01][%cal Ob1c3]} Bc5 {[%emt 0:00:27]} (15... Rb8 $5 {[%cal Rb8b7]} 16. Qe4 Be6 $15) 16. Nc3 {[%emt 0:00:01] Prevents Be2.} Bxe3+ {[%emt 0:00:19] A strong pair of Bishops.} 17. Kh1 {[%emt 0:00:01]} Rb8 $2 {[%emt 0:00:05][%mdl 8192] This move loses the game for Black.} (17... Qd4 $11 {and Black has nothing to worry.}) 18. Qe4 $1 $18 {[%emt 0:00:16][%csl LRe3,LRg4]} Qd4 {[%emt 0:00:01] [#]} 19. Rf4 $1 {[%emt 0:00:15]} Qd2 {[%emt 0:00:14]} (19... Qxe4 {keeps fighting.} 20. Rxe4 Be6 21. Rxe3 Rxb2) 20. Rxg4 {[%emt 0:00:10] Black must now prevent Rd1.} Qxb2 {[%emt 0:00:05]} 21. Re1 {[%emt 0:00:00]} Bd2 {[%emt 0:00:01]} (21... Qxc3 $142 22. Rxe3 Qc7) 22. Nd5 {[%emt 0:00:02]} Kh8 {[%emt 0:00:04]} 23. Rf1 {[%emt 0:00:06][%cal Og4g7] White threatens Rxg7! and mate.} Qxa2 {[%emt 0:00:02] [#]} 24. Ne7 {[%emt 0:00:04]} (24. Rxg7 $142 $3 {[%mdl 512]} Kxg7 25. Nf6 Qb1 26. Rxb1 Rxb1+ 27. Qxb1 Rh8 28. Nh5+ Kh6 29. Qf5) 24... Rbe8 {[%emt 0:00:03]} (24... Qe6 $142 25. Nc6 Rbc8) 25. Nf5 {[%emt 0:00:03][%cal Be7f5,Bf5d6,Bd6f7][%mdl 32]} g6 {[%emt 0:00:02]} 26. Nd6 {[%emt 0:00:00]} Re7 {[%emt 0:00:03]} 27. Qd4 {[%emt 0:00:03]} Kg8 {[%emt 0:00:02]} 28. Bd5 {[%emt 0:00:01]} Qc2 {[%emt 0:00:04]} 29. Nxf7 {[%emt 0:00:03]} Bc3 {[%emt 0:00:03]} 30. Qf2 {[%emt 0:00:03]} (30. Ng5+ $142 Ref7 31. Bxf7+ Kg7 32. Qd6 h5 33. Ne6+ Kh7 34. Qxf8 Qg2+ 35. Kxg2 hxg4 36. Qg7#) 30... Qxf2 {[%emt 0:00:04]} 31. Rxf2 {[%emt 0:00:01]} Kg7 {[%emt 0:00:01]} 32. e6 {[%emt 0:00:01]} a5 {[%emt 0:00:02]} 33. Rc4 {[%emt 0:00:02]} Bb4 {[%emt 0:00:01]} 34. Rfc2 {[%emt 0:00:02]} Rb8 {[%emt 0:00:03]} 35. Rc7 {[%emt 0:00:02]} a4 {[%emt 0:00:02]} 36. Rxe7 {[%emt 0:00:01]} Bxe7 {[%emt 0:00:01]} 37. Rc7 {[%emt 0:00:02]} Kf6 {[%emt 0:00:00]} 38. Ra7 {[%emt 0:00:03]} a3 {[%emt 0:00:03]} 39. Nh6 {[%emt 0:00:03] Threatens to win with Ng4+.} Bc5 {[%emt 0:00:02]} 40. Ra5 {[%emt 0:00:01]} Bd6 {[%emt 0:00:03]} 41. Ng4+ {[%emt 0:00:02]} Ke7 {[%emt 0:00:05]} 42. Ra7+ {[%emt 0:00:02]} Bc7 {[%emt 0:00:02]} 43. Rxc7+ {[%emt 0:00:01]} Kd6 {[%emt 0:00:01]} 44. Rd7+ {[%emt 0:00:01]} Kc5 {[%emt 0:00:00]} 45. e7 {[%emt 0:00:01] Weighted Error Value: White=0.68/Black=0.76} (45. Nf6 $142 Rc8 46. e7 a2 47. Bxa2 (47. e8=N a1=Q+ 48. Kg2 Kb4 $11) 47... Kb4 48. Rd8 Rc1+ 49. Kg2 Re1 50. Rd4+ Kc3 51. Re4) 1-0